bitfinex/quotes_SOLUSD_20260102
["timestamp","ask_amount","ask_price","bid_price","bid_amount"]
[1767374627035,6.26406237,131.78,131.75,0.2]
[1767374627233,26.55545814,131.8,131.75,0.2]
[1767374627234,5.54075422,131.76,131.75,0.2]
[1767374627610,0.72330815,131.77,131.75,0.2]
[1767374627820,5.54075422,131.76,131.75,0.2]
[1767374628015,0.72330815,131.75,131.71,21.43218879]
[1767374628322,0.72330815,131.79,131.73,13.13203942]
[1767374628522,5.54075422,131.78,131.74,0.72186907]
[1767374628914,0.72330815,131.78,131.73,26.97203942]
[1767374629423,5.54075422,131.76,131.72,7.59177183]
[1767374629630,5.54075422,131.76,131.72,13.84]
[1767374629927,5.54075422,131.74,131.72,0.72186907]
[1767374630118,5.54075422,131.74,131.71,0.72186907]
[1767374630323,5.54075422,131.75,131.71,0.72186907]
[1767374630531,5.54075422,131.76,131.71,0.72186907]
[1767374631036,5.54075422,131.76,131.71,8.31422467]
[1767374631236,5.54075422,131.76,131.72,0.72186907]
[1767374631411,0.72330815,131.76,131.71,8.31422467]
[1767374631616,0.72330815,131.76,131.72,0.72186907]
[1767374631818,6.26406237,131.75,131.7,81.93909733]
[1767374632008,5.54075422,131.74,131.7,68.09909733]
[1767374632209,0.72330815,131.75,131.7,81.93909733]
[1767374632515,5.54075422,131.74,131.7,68.09909733]
[1767374633321,5.54075422,131.73,131.7,60.50623254]
[1767374634031,5.54075422,131.73,131.7,59.78436347]
[1767374634542,9.02631211,131.72,131.7,59.78436347]
[1767374635139,8.31470541,131.73,131.7,59.78436347]
[1767374635348,17.34101752,131.73,131.7,59.78436347]
[1767374635725,0.72330815,131.73,131.7,59.78436347]
[1767374635944,17.3403804,131.74,131.7,59.78436347]
[1767374636427,17.3403804,131.74,131.7,60.50623254]
[1767374636428,9.74962026,131.74,131.7,60.50623254]
[1767374636628,0.72330815,131.74,131.7,60.50623254]
[1767374636831,9.74962026,131.76,131.72,0.72186907]
[1767374637037,17.3389737,131.77,131.72,0.72186907]
[1767374637223,9.02631211,131.77,131.73,0.72186907]
[1767374638238,9.74962026,131.78,131.74,0.72186907]
[1767374638543,9.02631211,131.77,131.74,0.72186907]
[1767374639647,17.33815838,131.78,131.74,0.72186907]
[1767374640037,9.74962026,131.78,131.74,0.72186907]
[1767374640246,9.02631211,131.78,131.74,0.72186907]
[1767374640551,9.74010504,131.79,131.74,17.33885029]
[1767374640726,17.32794364,131.79,131.74,0.72186907]
[1767374640924,9.02631211,131.78,131.74,0.72186907]
[1767374641350,9.74010504,131.77,131.73,34.2193808]
[1767374641930,0.71379293,131.77,131.73,34.88871666]
[1767374642131,9.74010504,131.77,131.73,34.88871666]
[1767374642834,16.61534827,131.77,131.73,20.3593808]
[1767374643137,17.3291412,131.77,131.73,20.3593808]
[1767374643345,9.02631211,131.76,131.73,20.3593808]
[1767374643551,9.02631211,131.75,131.72,21.02871666]
[1767374644052,8.99631211,131.75,131.72,21.02871666]
[1767374644431,16.58652349,131.75,131.72,21.02871666]
[1767374644951,7.59021138,131.75,131.72,21.02871666]
[1767374645126,16.61652349,131.75,131.72,21.02871666]
[1767374645727,16.61652349,131.75,131.72,20.3593808]
[1767374645926,17.33031642,131.75,131.72,20.3593808]
[1767374646151,8.30400431,131.75,131.72,20.3593808]
[1767374646432,17.33122504,131.74,131.72,20.3593808]
[1767374646635,9.02631211,131.73,131.7,94.67308013]
[1767374646954,9.74010504,131.73,131.7,80.14374427]
[1767374647143,9.02631211,131.72,131.7,59.78436347]
[1767374648071,9.02631211,131.71,131.7,59.78436347]
[1767374648456,17.33254297,131.71,131.7,2e-08]
[1767374648847,17.33254297,131.71,131.67,0.66933586]
[1767374649049,9.02631211,131.7,131.67,0.66933586]
[1767374649467,9.02631211,131.69,131.65,14.52933586]
[1767374649676,9.02631211,131.69,131.65,0.66933586]
[1767374650164,9.02631211,131.68,131.65,0.66933586]
[1767374651350,9.02631211,131.69,131.66,0.66933586]
[1767374651557,0.37625468,131.71,131.66,0.66933586]
[1767374651975,9.02631211,131.7,131.66,0.66933586]
[1767374652153,9.02631211,131.69,131.66,0.66933586]
[1767374652473,9.02631211,131.7,131.66,0.66933586]
[1767374653344,9.73672966,131.7,131.66,0.66933586]
[1767374653673,0.71041755,131.7,131.66,21.02871666]
[1767374653847,9.02631211,131.7,131.66,21.02871666]
[1767374654369,9.02631211,131.7,131.66,0.66933586]
[1767374654955,9.02631211,131.7,131.67,0.66933586]
[1767374655153,9.02631211,131.7,131.67,21.02871666]
[1767374656478,9.02631211,131.71,131.67,20.3593808]
[1767374656772,7.96832437,131.72,131.67,20.3593808]
[1767374656976,9.02631211,131.7,131.66,8.26462447]
[1767374657160,9.02631211,131.7,131.67,0.66933586]
[1767374657358,9.02631211,131.71,131.67,8.26404276]
[1767374657564,9.73672966,131.71,131.67,0.66933586]
[1767374657765,16.99463648,131.72,131.68,0.66933586]
[1767374658474,9.02631211,131.7,131.66,14.52933586]
[1767374658782,9.02631211,131.71,131.67,0.66933586]
[1767374659092,16.61878905,131.71,131.67,0.66933586]
[1767374660972,16.61878905,131.71,131.67,61.86933586]
[1767374661553,9.02631211,131.7,131.67,0.66933586]
[1767374661876,9.02631211,131.7,131.66,13.86]
[1767374662085,9.02631211,131.7,131.66,0.66933586]
[1767374662480,9.02631211,131.69,131.66,0.66933586]
[1767374662780,9.02631211,131.7,131.66,0.66933586]
[1767374662981,16.61941158,131.7,131.66,0.66933586]
[1767374663580,9.02631211,131.69,131.66,0.66933586]
[1767374664083,8.30351702,131.7,131.66,0.66933586]
[1767374664383,9.02631211,131.69,131.66,0.66933586]
[1767374664560,17.32982913,131.7,131.66,61.86933586]
[1767374665278,7.59271052,131.71,131.67,0.66933586]
[1767374665581,9.73342145,131.68,131.64,0.66933586]
[1767374665785,9.02631211,131.68,131.64,0.66933586]
[1767374666004,0.71041755,131.68,131.64,0.66933586]
[1767374666292,9.02631211,131.67,131.64,0.66933586]
[1767374666586,0.71041755,131.68,131.64,0.66933586]
[1767374666587,9.73672966,131.68,131.64,0.66933586]
[1767374667297,9.02631211,131.67,131.64,0.66933586]
[1767374667667,9.02631211,131.66,131.63,14.54744562]
[1767374667961,9.02631211,131.66,131.63,0.68744562]
[1767374669063,0.37959631,131.67,131.63,0.68744562]
[1767374669264,9.73017907,131.64,131.6,0.2]
[1767374669555,9.02631211,131.62,131.6,0.2]
[1767374669761,9.02631211,131.61,131.6,0.2]
[1767374671186,8.3113691,131.65,131.6,0.86232032]
[1767374671391,9.02631211,131.63,131.6,0.86232032]
[1767374671695,8.3113691,131.65,131.61,0.66232032]
[1767374671696,0.17712192,131.65,131.61,0.66232032]
[1767374671903,0.70955898,131.64,131.6,0.2]
[1767374672189,9.02631211,131.61,131.6,0.86232032]
[1767374672567,9.02631211,131.61,131.59,0.86232032]
[1767374672894,9.02631211,131.6,131.59,0.2]
[1767374673088,9.02631211,131.6,131.59,0.01043969]
[1767374673474,9.02631211,131.6,131.58,0.66232032]
[1767374673792,9.02631211,131.59,131.57,14.72232032]
[1767374674088,8.30131211,131.58,131.57,0.86232032]
[1767374674309,0.60428786,131.61,131.57,0.2]
[1767374674485,4.0709215,131.58,131.57,0.2]
[1767374674684,0.51670981,131.57,131.55,16.28091327]
[1767374674891,9.02631211,131.58,131.53,0.2]
[1767374675072,0.71493713,131.57,131.53,0.2]
[1767374675280,9.02631211,131.54,131.52,0.86232032]
[1767374675576,8.30131211,131.53,131.52,0.86232032]
[1767374675766,8.65534224,131.53,131.52,0.86232032]
[1767374676174,0.71493713,131.53,131.52,0.86232032]
[1767374676404,9.74124924,131.53,131.52,0.86232032]
[1767374676578,0.71493713,131.53,131.52,0.86232032]
[1767374676892,9.71124924,131.53,131.52,0.86232032]
[1767374677266,0.68493713,131.53,131.52,0.2]
[1767374677470,9.02631211,131.58,131.52,7.80340632]
[1767374677695,9.02631211,131.54,131.52,7.80340632]
[1767374678067,9.02631211,131.53,131.52,0.2]
[1767374678475,16.62650525,131.58,131.52,0.2]
[1767374678694,9.02631211,131.54,131.52,7.80333571]
[1767374678899,9.02631211,131.54,131.52,0.2]
[1767374679079,9.02631211,131.58,131.52,0.2]
[1767374679591,9.02631211,131.53,131.5,13.86]
[1767374679790,9.02631211,131.53,131.5,21.46456273]
[1767374679791,9.02631211,131.52,131.5,21.46456273]
[1767374679976,9.02631211,131.52,131.5,13.86]
[1767374680377,9.74124924,131.51,131.46,121.09638357]
[1767374680595,9.02631211,131.49,131.47,7.60621824]
[1767374681299,9.02631211,131.5,131.47,7.60621824]
[1767374681676,9.74124924,131.5,131.47,7.60621824]
[1767374682200,7.60278439,131.54,131.47,8.26853856]
[1767374682201,0.71493713,131.52,131.47,8.26853856]
[1767374682401,9.02631211,131.51,131.47,8.26853856]
[1767374682578,0.71493713,131.52,131.47,8.26853856]
[1767374682579,9.02631211,131.5,131.47,8.26853856]
[1767374683397,9.02631211,131.49,131.47,0.66232032]
[1767374683593,0.71493713,131.47,131.45,1e-08]
[1767374683896,9.02631211,131.47,131.45,1e-08]
[1767374684096,7.60518754,131.49,131.45,1e-08]
[1767374684283,9.02631211,131.47,131.45,1e-08]
[1767374684482,9.02631211,131.48,131.45,1e-08]
[1767374684687,8.30131211,131.48,131.47,0.66232032]
[1767374684885,7.60419418,131.51,131.47,0.66232032]
[1767374684886,0.71493713,131.51,131.47,0.66232032]
[1767374685197,9.02631211,131.52,131.47,0.66232032]
[1767374685404,7.602998,131.53,131.47,0.66232032]
[1767374685578,9.02631211,131.52,131.47,0.66232032]
[1767374685779,9.02631211,131.51,131.48,0.66232032]
[1767374686382,9.02631211,131.5,131.48,0.66232032]
[1767374686985,9.02631211,131.49,131.46,14.54232032]
[1767374687175,9.02631211,131.48,131.46,14.54232032]
[1767374687572,9.02631211,131.48,131.46,0.66232032]
[1767374687783,9.02631211,131.48,131.45,1e-08]
[1767374688397,0.71493713,131.49,131.45,1e-08]
[1767374688584,9.02631211,131.47,131.45,1e-08]
[1767374689195,9.02631211,131.46,131.45,1e-08]
[1767374689404,7.6055875,131.49,131.45,1e-08]
[1767374689405,0.71493713,131.47,131.45,1e-08]
[1767374689580,9.02631211,131.46,131.45,1e-08]
[1767374689893,9.74124924,131.46,131.45,1e-08]
[1767374691511,9.02631211,131.45,131.42,0.66232032]
[1767374692188,9.74124924,131.43,131.39,0.2]
[1767374692389,9.02631211,131.4,131.39,0.2]
[1767374692596,9.74124924,131.4,131.36,0.2]
[1767374692997,9.74124924,131.4,131.36,7.81264428]
[1767374693307,9.74124924,131.4,131.37,0.66232032]
[1767374693308,9.02631211,131.4,131.37,0.66232032]
[1767374693903,0.71298525,131.4,131.36,0.2]
[1767374694401,9.02631211,131.41,131.37,8.27422333]
[1767374694602,5.58048668,131.41,131.38,0.66232032]
[1767374695926,5.58048668,131.41,131.36,0.86232032]
[1767374695927,5.58048668,131.39,131.36,0.86232032]
[1767374696209,0.71298525,131.4,131.36,0.2]
[1767374696387,5.58048668,131.38,131.36,0.2]
[1767374696698,0.71298525,131.4,131.36,0.2]
[1767374696699,5.58048668,131.37,131.36,0.2]
[1767374697604,6.10406294,131.37,131.35,17.27596826]
[1767374697800,5.58048668,131.36,131.35,17.27596826]
[1767374698481,7.61113744,131.39,131.35,17.27596826]
[1767374698682,8.13025031,131.4,131.35,17.93828858]
[1767374698898,5.58048668,131.37,131.35,17.93828858]
[1767374699090,5.58048668,131.37,131.35,17.27596826]
[1767374699304,7.61050031,131.4,131.36,0.68898082]
[1767374699486,5.58048668,131.39,131.36,0.68898082]
[1767374699807,8.14540479,131.41,131.36,0.68898082]
[1767374700178,0.69910234,131.43,131.37,0.68898082]
[1767374700402,5.58048668,131.4,131.37,0.68898082]
[1767374700585,8.3080086,131.43,131.37,0.68898082]
[1767374700786,0.69910234,131.43,131.37,0.68898082]
[1767374701001,0.69910234,131.43,131.38,0.68898082]
[1767374701181,5.58048668,131.42,131.38,0.68898082]
[1767374701385,8.30802534,131.43,131.38,0.68898082]
[1767374701581,5.58048668,131.42,131.38,0.68898082]
[1767374701996,5.58048668,131.42,131.39,0.68898082]
[1767374702303,0.53542644,131.44,131.39,0.68898082]
[1767374702809,6.11591312,131.44,131.39,0.68898082]
[1767374703112,5.58048668,131.44,131.4,0.68898082]
[1767374703513,0.69910234,131.46,131.4,0.68898082]
[1767374703703,5.58048668,131.45,131.4,6.2694675]
[1767374704010,6.27958902,131.46,131.41,8.29828919]
[1767374704381,6.27958902,131.46,131.41,0.68898082]
[1767374704382,5.58048668,131.45,131.41,0.68898082]
[1767374704585,5.58048668,131.44,131.41,0.68898082]
[1767374704814,0.53542644,131.45,131.4,8.2992042]
[1767374705018,5.58048668,131.44,131.4,0.68898082]
[1767374705185,5.58048668,131.43,131.4,0.68898082]
[1767374705386,5.58048668,131.42,131.39,13.88]
[1767374705615,5.58048668,131.43,131.39,14.56898082]
[1767374705816,0.69746558,131.44,131.39,8.2996212]
[1767374705987,5.58048668,131.44,131.4,0.68898082]
[1767374706186,0.53542644,131.45,131.4,0.68898082]
[1767374706609,8.14297882,131.45,131.4,0.68898082]
[1767374706816,5.58048668,131.43,131.39,0.68898082]
[1767374707492,5.58048668,131.42,131.37,8.30068337]
[1767374707685,5.58048668,131.42,131.37,8.30089715]
[1767374707911,6.2747758,131.4,131.35,25.57806937]
[1767374708084,6.2747758,131.4,131.36,7.61263312]
[1767374708290,6.12067821,131.39,131.35,17.96494908]
[1767374708512,0.54019153,131.39,131.35,17.96494908]
[1767374708831,0.69910234,131.41,131.36,6.2694675]
[1767374709502,6.27958902,131.41,131.36,0.68898082]
[1767374709700,5.58048668,131.42,131.37,0.68898082]
[1767374709901,5.58048668,131.41,131.37,0.68898082]
[1767374710433,6.27958902,131.44,131.39,0.68898082]
[1767374710588,7.60759172,131.45,131.4,0.68898082]
[1767374710789,6.27958902,131.46,131.41,0.68898082]
[1767374711003,6.27958902,131.46,131.41,6.2694675]
[1767374711201,13.88666136,131.46,131.41,0.68898082]
[1767374711407,5.58048668,131.45,131.41,0.68898082]
[1767374711615,5.58048668,131.43,131.39,0.68898082]
[1767374712414,6.27795226,131.44,131.39,8.29965246]
[1767374712806,5.58048668,131.43,131.39,0.68898082]
[1767374713813,6.27634807,131.42,131.37,0.68898082]
[1767374714009,5.58048668,131.43,131.38,0.68898082]
[1767374714205,5.58048668,131.43,131.39,0.68898082]
[1767374714405,0.53542644,131.43,131.38,6.2694675]
[1767374714599,6.11591312,131.43,131.38,13.19162403]
[1767374714909,0.53704683,131.41,131.36,7.61218854]
[1767374715130,6.27634807,131.4,131.35,25.57792151]
[1767374715303,5.58048668,131.39,131.35,25.57792151]
[1767374716109,6.27634807,131.4,131.35,25.57792151]
[1767374716415,5.58048668,131.39,131.35,25.57792151]
[1767374716617,5.58048668,131.4,131.36,0.68898082]
[1767374716822,5.58048668,131.41,131.36,0.68898082]
[1767374717026,0.69910234,131.42,131.36,0.68898082]
[1767374717223,5.58048668,131.4,131.36,0.68898082]
[1767374717534,5.58048668,131.39,131.36,0.68898082]
[1767374717739,5.58048668,131.4,131.36,0.68898082]
[1767374718309,8.308366,131.42,131.36,8.30133408]
[1767374718512,5.58048668,131.4,131.37,0.68898082]
[1767374718733,8.308366,131.42,131.37,0.68898082]
[1767374718939,5.58048668,131.44,131.39,0.68898082]
[1767374719240,19.01803344,131.46,131.39,0.68898082]
[1767374719241,5.58048668,131.43,131.39,0.68898082]
[1767374720043,5.58048668,131.43,131.39,8.29974067]
[1767374720535,5.58048668,131.43,131.39,0.68898082]
[1767374720841,5.58048668,131.42,131.38,8.30042516]
[1767374721346,6.11753351,131.43,131.39,0.68898082]
[1767374721526,6.11753351,131.43,131.39,8.29986544]
[1767374721843,8.30668512,131.45,131.4,0.68898082]
[1767374722032,10.65407536,131.44,131.4,0.68898082]
[1767374722335,6.27958902,131.45,131.41,0.68898082]
[1767374722636,5.58048668,131.46,131.42,0.68898082]
[1767374723234,0.69746558,131.47,131.42,0.68898082]
[1767374723435,5.58048668,131.46,131.42,0.68898082]
[1767374723657,6.27795226,131.47,131.42,6.2694675]
[1767374723857,7.60586397,131.48,131.43,0.68898082]
[1767374724035,10.65919407,131.47,131.43,0.68898082]
[1767374724363,5.58048668,131.47,131.43,0.68898082]
[1767374724654,7.60586397,131.48,131.43,8.29728135]
[1767374724655,5.58048668,131.48,131.43,8.29728135]
[1767374724860,5.08297696,131.47,131.44,0.68898082]
[1767374725657,5.08297696,131.47,131.44,8.29699899]
[1767374725955,5.58048668,131.48,131.44,8.29699899]
[1767374726154,5.58048668,131.48,131.44,69.49699899]
[1767374726355,6.11591312,131.48,131.44,69.49699899]
[1767374726559,0.53542644,131.48,131.44,69.49699899]
[1767374726737,11.20391609,131.48,131.44,8.29699899]
[1767374727063,5.58048668,131.46,131.42,14.56898082]
[1767374727243,5.58048668,131.46,131.43,0.68855194]
[1767374727960,5.58048668,131.46,131.42,13.85058045]
[1767374728273,5.58048668,131.44,131.41,8.29790363]
[1767374728441,5.58048668,131.45,131.41,8.29790363]
[1767374728764,5.58048668,131.44,131.41,8.29790363]
[1767374728940,5.58048668,131.45,131.41,8.29790363]
[1767374729143,5.58048668,131.45,131.41,8.29826373]
[1767374729342,5.58048668,131.44,131.41,0.68855194]
[1767374729541,8.18801195,131.46,131.41,8.2982626]
[1767374729972,5.58048668,131.45,131.41,8.2982626]
[1767374730648,5.58048668,131.44,131.41,0.68855194]
[1767374731773,5.58048668,131.45,131.41,0.68855194]
[1767374732151,7.60692599,131.46,131.41,0.68855194]
[1767374732350,5.58048668,131.45,131.41,0.68855194]
[1767374732662,5.58048668,131.44,131.41,0.68855194]
[1767374733985,5.58048668,131.45,131.41,0.68855194]
[1767374734191,0.58120013,131.47,131.42,0.67744209]
[1767374734481,5.58048668,131.46,131.42,0.67744209]
[1767374735846,8.25914071,131.46,131.42,0.67744209]
[1767374736187,6.23263631,131.46,131.42,0.67744209]
[1767374736386,5.58048668,131.47,131.43,0.67744209]
[1767374736671,6.16168681,131.47,131.43,0.67744209]
[1767374738846,13.76806052,131.47,131.43,0.67744209]
[1767374739152,5.58048668,131.45,131.41,14.55744209]
[1767374739639,0.58190962,131.44,131.41,13.88]
[1767374739838,0.58190962,131.44,131.41,21.48975412]
[1767374740047,5.58048668,131.45,131.42,0.67744209]
[1767374740743,6.23335297,131.46,131.42,0.67744209]
[1767374741266,5.58048668,131.45,131.42,0.67744209]
[1767374741666,0.65286629,131.46,131.42,0.67744209]
[1767374741970,6.23335297,131.46,131.42,0.67744209]
[1767374742746,6.23335297,131.46,131.41,14.55744209]
[1767374742747,5.58048668,131.45,131.41,14.55744209]
[1767374743581,5.58048668,131.45,131.41,22.16712113]
[1767374743878,6.16168681,131.47,131.43,0.67744209]
[1767374745378,6.1623963,131.45,131.41,0.67744209]
[1767374745689,5.58048668,131.45,131.41,0.67744209]
[1767374745981,5.58048668,131.44,131.41,8.28713145]
[1767374746478,5.58048668,131.44,131.41,0.67744209]
[1767374746479,2.42924423,131.44,131.41,0.67744209]
[1767374746684,0.65214963,131.44,131.39,0.67744209]
[1767374746898,2.42924423,131.42,131.39,0.67744209]
[1767374748179,2.42924423,131.4,131.37,14.55744209]
[1767374748379,0.582605,131.41,131.35,25.56641727]
[1767374748578,5.5823418,131.39,131.35,25.56641727]
[1767374749091,0.65286629,131.39,131.35,24.88897518]
[1767374749298,6.23520809,131.39,131.35,17.27596826]
[1767374749588,6.23520809,131.39,131.35,17.95341035]
[1767374749762,0.65214963,131.37,131.35,17.27596826]
[1767374749959,0.65286629,131.39,131.35,17.27596826]
[1767374750271,5.5823418,131.4,131.36,0.67744209]
[1767374751085,13.19176541,131.42,131.37,0.67744209]
[1767374751267,0.65214963,131.41,131.37,0.67744209]
[1767374751469,5.5823418,131.41,131.37,0.67744209]
[1767374751678,13.19176541,131.42,131.37,0.67744209]
[1767374751880,13.77296554,131.42,131.37,0.67744209]
[1767374752391,5.5823418,131.41,131.37,0.67744209]
[1767374752569,5.5823418,131.4,131.37,0.67744209]
[1767374752764,5.5823418,131.41,131.37,0.67744209]
[1767374752964,8.19062374,131.42,131.37,0.67744209]
[1767374753166,6.16425142,131.4,131.35,45.02871569]
[1767374753588,7.60942361,131.42,131.35,16.51863613]
[1767374753589,0.482605,131.37,131.35,16.51863613]
[1767374753890,5.6813418,131.38,131.35,16.13603113]
[1767374754186,13.88,131.42,131.35,16.13603113]
[1767374754385,19.02587519,131.4,131.35,16.13603113]
[1767374754590,19.02587519,131.4,131.35,16.81347322]
[1767374754891,5.5823418,131.38,131.35,16.13603113]
[1767374755190,5.5823418,131.37,131.35,16.13603113]
[1767374755382,5.5823418,131.37,131.35,16.81347322]
[1767374755990,5.5823418,131.38,131.35,16.81347322]
[1767374756584,9.0726941,131.38,131.35,16.81347322]
[1767374756994,9.0726941,131.37,131.35,16.81347322]
[1767374757190,9.0726941,131.36,131.35,16.13603113]
[1767374757490,9.0726941,131.37,131.35,16.13603113]
[1767374757791,9.0726941,131.36,131.35,16.13603113]
[1767374758366,16.68536157,131.36,131.35,16.13603113]
[1767374758671,9.0726941,131.35,131.33,0.2]
[1767374758872,9.0726941,131.36,131.33,0.87744209]
[1767374759081,9.0726941,131.34,131.33,0.2]
[1767374759286,7.61267144,131.36,131.33,0.2]
[1767374759489,9.0726941,131.34,131.33,0.2]
[1767374760393,9.0726941,131.35,131.33,0.2]
[1767374760595,13.88,131.38,131.33,0.2]
[1767374760792,9.0726941,131.36,131.34,0.70926814]
[1767374760995,9.0726941,131.36,131.33,0.90926814]
[1767374762497,7.61244417,131.37,131.32,0.2]
[1767374762498,9.0726941,131.34,131.32,0.2]
[1767374762796,9.0726941,131.33,131.31,0.2]
[1767374762997,13.88,131.36,131.29,58.94198458]
[1767374762998,9.0726941,131.32,131.29,58.94198458]
[1767374763204,13.88,131.34,131.28,0.2]
[1767374763695,9.0726941,131.32,131.28,0.90926814]
[1767374763999,7.61455306,131.33,131.29,0.70926814]
[1767374764301,9.0726941,131.3,131.29,0.70926814]
[1767374764502,9.0726941,131.32,131.29,0.70926814]
[1767374764792,9.0726941,131.35,131.3,0.70926814]
[1767374765395,9.0726941,131.36,131.32,0.70926814]
[1767374765595,9.0726941,131.37,131.32,0.70926814]
[1767374765899,9.0726941,131.36,131.33,0.70926814]
[1767374766081,7.61092929,131.39,131.33,0.70926814]
[1767374766283,9.0726941,131.37,131.33,0.70926814]
[1767374766683,9.0726941,131.38,131.34,0.70926814]
[1767374766890,7.61092929,131.39,131.34,0.70926814]
[1767374767092,7.61044949,131.4,131.36,0.70926814]
[1767374767782,16.68314359,131.4,131.36,0.70926814]
[1767374767980,9.0726941,131.39,131.36,0.70926814]
[1767374768500,32.90365719,131.42,131.36,9.78196224]
[1767374768501,7.60986578,131.41,131.36,9.78196224]
[1767374768806,9.0726941,131.4,131.36,0.70926814]
[1767374769107,9.0726941,131.41,131.37,0.70926814]
[1767374769307,9.0726941,131.43,131.38,0.70926814]
[1767374769683,9.0726941,131.41,131.38,0.70926814]
[1767374769882,9.0726941,131.4,131.34,7.6137]
[1767374770095,9.0726941,131.38,131.34,0.70926814]
[1767374770385,9.0726941,131.4,131.35,0.70926814]
[1767374770593,9.0726941,131.4,131.36,0.70926814]
[1767374772107,30.56269301,131.41,131.36,0.70926814]
[1767374772417,30.56269301,131.41,131.37,0.70926814]
[1767374772592,13.88,131.47,131.38,0.70926814]
[1767374772919,9.0726941,131.44,131.4,0.70926814]
[1767374773397,9.0726941,131.45,131.4,0.70926814]
[1767374773605,7.60780062,131.45,131.4,0.70926814]
[1767374773919,16.68049472,131.45,131.4,9.78196224]
[1767374774217,9.0726941,131.44,131.4,0.70926814]
[1767374774891,9.0726941,131.44,131.39,9.0726941]
[1767374775091,7.60780062,131.45,131.39,9.0726941]
[1767374775600,7.60780062,131.45,131.4,9.0726941]
[1767374775786,16.68049472,131.45,131.39,9.0726941]
[1767374775991,7.60780062,131.45,131.4,0.70926814]
[1767374776206,16.68049472,131.45,131.4,9.78196224]
[1767374776409,9.0726941,131.44,131.4,0.70926814]
[1767374776717,9.0726941,131.42,131.38,0.70926814]
[1767374777227,9.0726941,131.43,131.38,0.70926814]
[1767374777521,9.0726941,131.42,131.37,9.0726941]
[1767374777687,16.6829953,131.41,131.36,9.78196224]
[1767374777886,16.6829953,131.41,131.36,0.70926814]
[1767374778084,9.0726941,131.4,131.36,0.70926814]
[1767374779113,26.63472856,131.41,131.36,0.70926814]
[1767374779447,26.63472856,131.41,131.37,0.70926814]
[1767374779448,35.70742266,131.41,131.37,0.70926814]
[1767374779791,16.6829953,131.41,131.37,0.70926814]
[1767374780220,7.6103012,131.41,131.37,9.78196224]
[1767374780797,21.48945541,131.42,131.38,9.78196224]
[1767374781417,13.88,131.42,131.38,9.78196224]
[1767374781631,21.48922017,131.42,131.38,9.78196224]
[1767374781922,21.48922017,131.42,131.38,0.70926814]
[1767374782094,7.60922017,131.42,131.38,9.78196224]
[1767374782903,7.60872846,131.43,131.39,0.70926814]
[1767374783099,21.48825083,131.44,131.4,9.78196224]
[1767374783317,21.48825083,131.44,131.4,0.70926814]
[1767374783821,9.0726941,131.43,131.4,0.70926814]
[1767374784127,16.68138971,131.43,131.4,0.70926814]
[1767374785400,9.0726941,131.42,131.4,0.70926814]
[1767374785600,9.0726941,131.42,131.38,0.70926814]
[1767374786001,9.0726941,131.41,131.37,61.2]
[1767374786316,9.0726941,131.39,131.37,61.2]
[1767374786509,9.0726941,131.4,131.35,0.70926814]
[1767374786701,21.49020387,131.41,131.36,0.71640436]
[1767374786903,30.56289797,131.41,131.36,0.71640436]
[1767374787109,9.0726941,131.4,131.36,0.71640436]
[1767374787620,9.0726941,131.39,131.36,0.71640436]
[1767374788327,9.0726941,131.4,131.36,0.71640436]
[1767374788621,9.0726941,131.39,131.36,0.71640436]
[1767374789026,9.0726941,131.4,131.36,0.71640436]
[1767374790019,21.49020387,131.41,131.36,61.91640436]
[1767374790202,30.56289797,131.41,131.37,0.68631296]
[1767374790409,7.61020387,131.41,131.37,0.68631296]
[1767374790916,13.88,131.43,131.38,0.68631296]
[1767374791128,9.0726941,131.41,131.39,0.68631296]
[1767374791327,9.0726941,131.4,131.38,61.2]
[1767374791623,9.0726941,131.39,131.37,61.2]
[1767374792227,40.51247142,131.42,131.37,61.2]
[1767374792406,9.0726941,131.39,131.37,61.2]
[1767374793231,9.0726941,131.4,131.37,61.88631296]
[1767374793532,9.0726941,131.39,131.37,61.88631296]
[1767374793825,9.0726941,131.39,131.37,61.2]
[1767374795218,7.61019541,131.41,131.37,61.2]
[1767374795531,9.0726941,131.39,131.37,61.2]
[1767374795917,9.0726941,131.38,131.36,0.68631296]
[1767374796118,9.0726941,131.39,131.35,8.29955881]
[1767374796413,9.0726941,131.41,131.36,17.3714762]
[1767374796618,9.0726941,131.41,131.37,0.68631296]
[1767374797214,16.68199912,131.42,131.38,0.68631296]
[1767374797433,16.68199912,131.42,131.39,0.68631296]
[1767374797434,9.0726941,131.42,131.39,0.68631296]
[1767374797635,9.0726941,131.41,131.39,0.68631296]
[1767374798740,9.0726941,131.42,131.39,0.68631296]
[1767374799716,16.6822975,131.42,131.39,0.68631296]
[1767374799921,9.0726941,131.41,131.38,61.2]
[1767374800226,9.0726941,131.4,131.38,61.2]
[1767374800404,7.6096034,131.42,131.38,61.2]
[1767374800405,9.0726941,131.39,131.38,61.2]
[1767374800609,9.0726941,131.39,131.36,61.2]
[1767374801011,26.63258315,131.42,131.37,0.68631296]
[1767374801236,9.0726941,131.4,131.38,0.68631296]